bitfinex/quotes_ETHUSD_20250908
["timestamp","ask_amount","ask_price","bid_price","bid_amount"]
[1757297128313,0.5504,4293.6,4293.5,2.4223382]
[1757297128511,0.6188,4293.6,4293.5,0.09323607]
[1757297129424,0.6188,4293.6,4293.5,2.4223382]
[1757297129600,0.6188,4293.6,4293.5,0.09323607]
[1757297129805,0.6188,4293.6,4293.5,2.4223382]
[1757297130000,0.5504,4293.6,4293.5,0.09323607]
[1757297130202,0.6188,4293.6,4293.5,0.09323607]
[1757297130410,0.6188,4293.6,4293.5,2.4223382]
[1757297130928,0.6188,4293.6,4293.5,0.09323607]
[1757297131733,0.6188,4293.6,4293.5,2.4223382]
[1757297131893,0.6188,4293.6,4293.5,0.09323607]
[1757297132955,1.4108,4293.6,4293.5,0.09323607]
[1757297133101,1.78938019,4293.6,4293.5,0.09323607]
[1757297133307,0.792,4293.5,4292.9,2.32942765]
[1757297133627,0.1094,4293.0,4292.9,2.32942765]
[1757297133938,0.1094,4293.0,4292.9,3.02896397]
[1757297134721,0.001,4293.6,4293.5,2.32910213]
[1757297134919,0.001,4293.6,4292.9,9.37745209]
[1757297134920,0.001,4293.6,4293.4,2.32912354]
[1757297135140,0.001,4293.6,4293.0,0.4408]
[1757297135141,0.001,4293.6,4293.5,2.32910213]
[1757297135448,0.001,4293.6,4293.4,2.32914292]
[1757297135819,0.099,4293.5,4293.4,2.32914292]
[1757297136018,0.099,4293.5,4293.3,2.32919422]
[1757297136339,0.099,4293.5,4293.4,2.32915637]
[1757297136542,0.099,4293.5,4293.3,2.32919394]
[1757297136743,0.5494,4293.5,4293.3,2.32919394]
[1757297136900,0.5494,4293.5,4293.4,2.32915637]
[1757297137536,0.099,4293.5,4293.4,2.32915637]
[1757297138346,0.099,4293.5,4293.3,0.5494]
[1757297138545,0.099,4293.5,4293.4,2.32915637]
[1757297139348,0.099,4293.5,4293.3,0.5494]
[1757297139518,0.099,4293.5,4293.3,2.87859701]
[1757297139724,0.099,4293.5,4293.3,0.5494]
[1757297139933,0.099,4293.5,4293.3,2.87860573]
[1757297140123,0.099,4293.5,4293.4,2.32915637]
[1757297140511,0.099,4293.5,4293.3,2.87859877]
[1757297141235,0.099,4293.5,4293.3,2.32919877]
[1757297141435,0.099,4293.5,4293.4,2.32915637]
[1757297141947,0.099,4293.5,4293.1,0.4408]
[1757297142120,0.099,4293.5,4293.4,0.116]
[1757297142325,0.099,4293.5,4293.2,2.32922447]
[1757297142524,0.099,4293.5,4293.3,2.32919018]
[1757297143249,0.099,4293.5,4293.3,2.44519018]
[1757297143748,0.4504,4293.4,4293.3,0.116]
[1757297143952,0.83734881,4293.4,4293.3,0.116]
[1757297144253,0.116,4293.3,4292.9,2.3294239]
[1757297144413,0.5664,4293.3,4292.9,2.3294239]
[1757297144613,0.099,4293.0,4292.9,2.3294239]
[1757297146743,0.5664,4293.3,4293.2,2.32926488]
[1757297146948,0.215,4293.3,4293.2,2.32926488]
[1757297147610,0.116,4293.3,4293.2,2.32926488]
[1757297148146,0.116,4293.3,4293.2,2.77006488]
[1757297148448,0.215,4293.3,4292.8,0.002]
[1757297148949,0.215,4293.3,4292.9,2.32942235]
[1757297149315,0.215,4293.3,4292.8,3.002]
[1757297149316,1.2424,4293.2,4292.8,0.002]
[1757297149735,0.099,4292.9,4292.8,0.002]
[1757297150141,5.2274,4292.9,4292.8,0.002]
[1757297150336,7.62522765,4292.9,4292.8,0.002]
[1757297150530,8.6206832,4292.9,4292.8,0.002]
[1757297153313,3.12159045,4292.6,4292.5,1e-08]
[1757297153638,3.121699,4292.4,4292.3,0.002]
[1757297153812,8.896699,4292.4,4292.3,0.002]
[1757297154016,10.55273337,4292.4,4292.3,0.002]
[1757297154919,3.12180755,4292.2,4291.9,0.09530523]
[1757297155138,3.12191612,4292.0,4291.9,0.002]
[1757297155353,7.11831612,4292.0,4291.9,0.002]
[1757297155551,7.57171612,4292.0,4291.9,0.002]
[1757297155850,6.00481161,4292.0,4291.9,0.002]
[1757297156058,5.55141161,4292.0,4291.9,0.002]
[1757297157468,7.88132773,4292.0,4291.9,0.002]
[1757297157619,8.33472773,4292.0,4291.9,0.002]
[1757297157835,8.39312773,4292.0,4291.9,0.002]
[1757297158039,8.39312773,4292.0,4290.6,0.4705]
[1757297158040,0.792,4291.2,4290.6,0.9439]
[1757297158240,0.792,4291.0,4290.6,0.4734]
[1757297158463,3.12245958,4291.0,4290.6,0.4734]
[1757297158664,0.099,4290.9,4290.6,0.4734]
[1757297158874,0.099,4290.9,4290.5,0.69984312]
[1757297159256,3.22151341,4290.9,4290.5,0.69984312]
[1757297159488,0.891,4290.9,4290.5,0.69984312]
[1757297159670,2.04759879,4290.9,4290.3,0.9459]
[1757297159865,4.3781122,4290.9,4290.3,0.9459]
[1757297160049,4.3781122,4290.9,4290.3,1.64589988]
[1757297160256,2.04759879,4290.9,4290.3,1.64589988]
[1757297161281,4.3781122,4290.9,4290.3,0.70199988]
[1757297161784,2.04759879,4290.9,4290.3,3.03281755]
[1757297162978,2.04759879,4290.9,4290.4,0.4734]
[1757297164451,4.3781122,4290.9,4290.3,1.17539988]
[1757297165459,8.2651122,4290.9,4290.3,1.17539988]
[1757297165660,5.93459879,4290.9,4290.3,3.5062136]
[1757297166260,5.93459879,4290.9,4290.5,0.4734]
[1757297166595,8.2651122,4290.9,4290.3,0.70199988]
[1757297166761,8.7185122,4290.9,4290.3,0.002]
[1757297167084,0.792,4290.7,4290.3,0.002]
[1757297167278,0.792,4290.5,4290.3,0.002]
[1757297167485,4.679,4290.4,4290.3,0.4754]
[1757297168151,4.679,4290.4,4290.3,0.7843]
[1757297168791,7.119185,4290.4,4290.3,0.002]
[1757297168951,8.15252006,4290.4,4290.3,0.002]
[1757297169906,5.82173506,4290.4,4290.3,0.002]
[1757297170186,5.71233506,4290.4,4290.3,0.002]
[1757297170759,8.04312006,4290.4,4290.3,0.002]
[1757297171360,8.22147573,4290.4,4290.3,0.002]
[1757297172494,5.89069073,4290.4,4290.3,0.002]
[1757297172902,8.22147573,4290.4,4290.3,0.002]
[1757297173107,5.89069073,4290.4,4290.3,0.002]
[1757297174397,1.82533506,4290.4,4290.3,1.2548]
[1757297174595,1.82533506,4290.4,4290.3,3.58563933]
[1757297174596,3.886,4290.4,4290.3,3.58563933]
[1757297175787,0.792,4290.9,4290.6,2.33067014]
[1757297176098,0.85046038,4291.0,4290.5,2.33072439]
[1757297176099,0.116,4290.6,4290.5,2.33072439]
[1757297176301,3.887,4290.6,4290.5,0.3089]
[1757297176466,4.003,4290.6,4290.5,3.58353068]
[1757297177082,4.003,4290.6,4290.5,0.7823]
[1757297177266,4.4033,4290.6,4290.5,0.7823]
[1757297180606,4.4033,4290.6,4290.5,1.2528]
[1757297180778,4.4033,4290.6,4290.5,1.2548]
[1757297181517,4.4033,4290.6,4290.5,0.7843]
[1757297183208,4.4033,4290.6,4290.5,3.61453068]
[1757297183410,4.003,4290.6,4290.5,1.2838]
[1757297183623,4.003,4290.6,4290.5,3.61453068]
[1757297183794,3.887,4290.6,4290.5,3.61453068]
[1757297184144,4.003,4290.6,4290.5,3.61453068]
[1757297184678,4.003,4290.6,4290.5,4.31450607]
[1757297188527,3.887,4290.6,4290.5,4.31450607]
[1757297190827,6.887,4290.6,4290.5,0.70197539]
[1757297191029,3.12300233,4290.0,4289.9,0.002]
[1757297191240,12.66726145,4290.0,4289.9,0.002]
[1757297191398,0.792,4289.6,4288.4,0.9646]
[1757297191598,2.33156652,4289.0,4288.4,0.9646]
[1757297191819,5.707,4288.9,4288.4,0.9646]
[1757297192021,5.708,4288.9,4288.4,0.9646]
[1757297192296,9.38990017,4288.9,4288.0,0.4651]
[1757297193105,8.93060017,4288.9,4288.0,0.4651]
[1757297193307,10.12020301,4288.9,4288.0,0.4651]
[1757297193692,10.57950301,4288.9,4288.0,0.4651]
[1757297194197,10.86140044,4288.9,4288.0,0.4651]
[1757297194394,10.86140044,4288.9,4287.6,2.3322955]
[1757297194607,10.86140044,4288.9,4287.2,4.40249155]
[1757297194608,10.92980044,4288.9,4287.8,2.33217166]
[1757297194834,10.92980044,4288.9,4287.9,2.33213342]
[1757297195345,10.712403,4288.9,4288.0,2.33208893]
[1757297195552,10.644003,4288.9,4288.0,2.33208893]
[1757297196317,10.644003,4288.9,4288.1,2.33203276]
[1757297196653,3.93510283,4288.9,4288.1,0.9646]
[1757297196819,6.56549999,4288.9,4288.4,0.4651]
[1757297197025,6.66449999,4288.9,4288.4,0.4651]
[1757297197224,8.99610016,4288.9,4288.4,0.4651]
[1757297197558,8.99610016,4288.9,4288.1,0.4995]
[1757297197741,6.66449999,4288.9,4288.1,3.29663394]
[1757297197942,8.99610016,4288.9,4288.1,3.29662625]
[1757297198120,10.17478645,4288.9,4288.1,3.29662625]
[1757297198314,10.17478645,4288.9,4288.2,2.33197477]
[1757297198514,7.84318628,4288.9,4288.3,0.4651]
[1757297198715,7.74418628,4288.9,4288.4,2.83136715]
[1757297198916,7.74418628,4288.9,4288.6,0.4651]
[1757297200544,7.84318628,4288.9,4288.6,0.4651]
[1757297201745,10.17478645,4288.9,4288.6,0.4651]
[1757297202119,7.74218628,4288.9,4288.6,0.4651]
[1757297202348,7.74218628,4288.9,4288.8,0.027]
[1757297203125,7.74218628,4288.9,4288.8,0.7983]
[1757297203355,6.95018628,4288.9,4288.8,0.7983]
[1757297203733,6.95018628,4288.9,4288.8,0.027]
[1757297204043,1.85449999,4288.9,4288.8,1.2978]
[1757297204246,5.77049999,4288.9,4288.8,1.2978]
[1757297204653,5.77049999,4288.9,4288.8,3.62945454]
[1757297206623,5.77049999,4288.9,4288.8,1.2978]
[1757297207467,6.44654999,4288.9,4288.8,0.027]
[1757297209268,8.77815016,4288.9,4288.8,0.027]
[1757297209475,6.44654999,4288.9,4288.8,0.027]
[1757297209673,6.34754999,4288.9,4288.8,0.027]
[1757297213068,6.34754999,4288.9,4288.8,0.4921]
[1757297213275,5.77049999,4288.9,4288.8,0.334]
[1757297213437,5.86949999,4288.9,4288.8,0.027]
[1757297213751,5.77049999,4288.9,4288.8,0.027]
[1757297214144,5.85876698,4288.9,4288.8,0.027]
[1757297217148,5.85876698,4288.9,4288.8,0.7676]
[1757297217873,5.85476698,4288.9,4288.8,1.2468]
[1757297218440,5.85476698,4288.9,4288.8,0.7676]
[1757297219439,5.85476698,4288.9,4288.8,0.027]
[1757297219852,6.54964368,4288.9,4288.8,0.027]
[1757297220378,6.76808469,4288.9,4288.8,0.027]
[1757297220574,6.65868469,4288.9,4288.8,0.027]
[1757297221374,6.76758469,4288.9,4288.8,0.027]
[1757297222079,6.65868469,4288.9,4288.8,0.027]
[1757297222982,6.76758469,4288.9,4288.8,0.027]
[1757297224271,6.65868469,4288.9,4288.8,0.027]
[1757297224470,6.65868469,4288.9,4288.8,0.7676]
[1757297225682,2.74668469,4288.9,4288.8,1.2468]
[1757297225861,6.07020799,4288.9,4288.8,1.2468]
[1757297226662,6.07020799,4288.9,4288.8,0.027]
[1757297227688,6.17960799,4288.9,4288.8,0.027]
[1757297227986,8.51120816,4288.9,4288.8,0.027]
[1757297228487,6.17960799,4288.9,4288.8,0.027]
[1757297228689,9.59546793,4288.9,4288.8,0.027]
[1757297228982,7.15446776,4288.9,4288.8,0.027]
[1757297229213,10.88056793,4288.9,4288.8,0.027]
[1757297229348,18.44417939,4288.9,4288.8,0.027]
[1757297230665,21.99794665,4288.9,4288.8,1e-08]
[1757297230966,2.332107,4288.0,4287.4,0.4336]
[1757297231166,2.33196182,4288.3,4287.4,0.4336]
[1757297231167,8.25261724,4287.9,4287.4,0.4336]
[1757297231479,0.4931,4288.5,4287.5,0.9128]
[1757297231480,5.85380798,4287.8,4287.5,0.9128]
[1757297231676,5.85380798,4287.8,4287.7,0.307]
[1757297231876,1.791,4287.8,4287.7,1.18628043]
[1757297232189,5.701,4287.8,4287.7,1.18628043]
[1757297233293,5.701,4287.8,4287.7,0.27348043]
[1757297233485,6.2711,4287.8,4287.5,0.4336]
[1757297233675,6.2711,4287.8,4287.6,0.4336]
[1757297233875,6.2711,4287.8,4287.3,0.4792]
[1757297234222,5.701,4287.8,4287.4,0.9128]
[1757297234372,5.701,4287.8,4287.4,0.4792]
[1757297234577,5.701,4287.8,4287.7,0.307]
[1757297234777,5.701,4287.8,4287.7,3.55205272]
[1757297235070,1.791,4287.8,4287.7,3.55205272]
[1757297235274,5.704,4287.8,4287.7,3.55205272]
[1757297236473,5.704,4287.8,4287.7,1.2198]
[1757297237198,5.704,4287.8,4287.7,3.55205272]
[1757297238810,1.791,4287.8,4287.7,3.55205272]
[1757297239005,5.703,4287.8,4287.7,3.55205272]
[1757297242116,3.912,4287.8,4287.7,3.55205272]
[1757297242299,3.912,4287.8,4287.7,9.10410523]
[1757297242720,1.792,4288.5,4288.4,2.33187202]
[1757297242878,5.704,4288.5,4288.4,3.55167202]
[1757297247288,5.704,4288.5,4288.4,3.07247202]
[1757297247489,5.704,4288.5,4288.4,0.7406]
[1757297247818,5.704,4288.5,4288.4,3.07247202]
[1757297248126,5.704,4288.5,4288.4,2.63887202]
[1757297248417,5.704,4288.5,4288.4,2.33187202]
[1757297248618,5.704,4288.5,4288.4,2.78227202]
[1757297248820,5.704,4288.5,4288.4,3.06967202]
[1757297249199,5.704,4288.5,4288.4,3.53567202]
[1757297249615,3.912,4288.5,4288.4,3.65167202]
[1757297250688,0.116,4289.2,4288.7,2.33169515]
[1757297250891,0.442,4289.5,4289.4,2.33132839]
[1757297251225,0.442,4289.5,4289.4,9.0871809]
[1757297253320,0.001,4289.6,4289.5,2.33127404]
[1757297253491,0.001,4289.6,4289.5,3.24767404]
[1757297253690,0.001,4289.6,4289.5,3.53507404]
[1757297260742,0.001,4289.6,4289.5,2.33127404]
[1757297260910,0.1641,4289.6,4288.7,2.33170876]
[1757297261096,0.116,4289.4,4289.3,2.33138274]
[1757297262114,0.116,4289.4,4289.3,2.78178274]
[1757297262742,0.116,4289.4,4289.3,2.33138274]
[1757297263413,0.215,4289.4,4289.3,2.33138274]
[1757297265112,0.116,4289.4,4289.3,2.33138274]
[1757297266553,0.116,4289.4,4289.3,3.06918274]
[1757297266732,0.116,4289.4,4289.3,3.53518274]
[1757297269051,0.001,4289.6,4289.5,2.33127404]
[1757297269355,0.001,4289.6,4289.5,7.88332655]
[1757297269652,0.001,4289.6,4289.5,9.20312655]
[1757297271561,0.001,4289.6,4289.5,8.73712655]
[1757297271965,0.001,4289.6,4289.5,9.20312655]
[1757297272660,0.1,4289.6,4289.5,7.99932655]
[1757297272827,0.001,4289.6,4289.5,7.99932655]
[1757297273452,0.001,4289.6,4289.5,8.74932655]
[1757297274058,0.001,4289.6,4289.5,8.46322655]
[1757297274832,0.1641,4289.6,4289.5,7.88332655]
[1757297275053,0.001,4289.6,4289.5,7.88332655]
[1757297275442,0.1,4289.6,4289.5,2.33127404]
[1757297276644,4.006,4289.6,4289.5,2.33127404]
[1757297277334,4.46909,4289.6,4289.5,2.33127404]
[1757297279866,3.907,4289.6,4289.5,2.61737404]
[1757297280039,3.907,4289.6,4289.5,3.56877404]
[1757297280232,0.001,4289.6,4289.5,9.12082655]
[1757297280970,0.001,4289.6,4289.5,12.12082655]
[1757297281144,0.001,4289.6,4289.5,12.23682655]
[1757297281347,0.001,4289.6,4289.5,16.14182655]
[1757297282265,0.001,4290.1,4290.0,2.33100233]
[1757297282448,0.001,4290.1,4290.0,10.99905484]
[1757297282651,0.001,4290.1,4290.0,12.23655484]
[1757297284275,0.001,4290.1,4290.0,10.99905484]
[1757297284870,0.1,4290.1,4290.0,2.33100233]
[1757297285174,0.6999,4290.1,4290.0,2.33100233]
[1757297285363,0.6999,4290.1,4289.4,3.116]
[1757297285364,0.6999,4290.1,4289.6,2.33117859]
[1757297285563,0.6999,4290.1,4289.7,2.33116534]
[1757297285564,0.116,4289.8,4289.7,2.33116534]
[1757297285773,4.121,4289.8,4289.7,2.33116534]
[1757297286080,4.6049,4289.8,4289.7,2.33116534]
[1757297286283,4.121,4289.8,4289.7,2.33116534]
[1757297286660,4.121,4289.8,4289.6,2.33120774]
[1757297286846,0.4839,4289.7,4289.6,2.33120899]
[1757297287046,0.4839,4289.7,4288.9,9.57405251]
[1757297287047,6.37259,4289.8,4289.7,2.33116534]
[1757297287282,6.37269,4289.8,4289.7,2.33116534]
[1757297287442,6.37269,4289.8,4288.9,0.116]
[1757297287749,6.74059,4289.8,4289.5,2.33127356]
[1757297287945,1.168139,4289.7,4289.5,2.33127356]
[1757297288144,0.0991,4289.6,4289.5,2.33127356]
[1757297288385,0.116,4289.5,4289.3,2.33134349]
[1757297288547,0.116,4289.5,4288.9,0.116]
[1757297288548,0.583,4289.4,4288.9,2.33159646]
[1757297288746,3.905,4289.3,4289.2,2.33138597]
[1757297288978,4.0041,4289.3,4289.2,2.33138597]
[1757297291504,3.905,4289.3,4289.2,2.61748597]
[1757297291702,3.905,4289.3,4289.2,9.12093848]
[1757297291872,3.905,4289.3,4289.2,2.33143709]
[1757297292469,3.905,4289.3,4289.2,3.08143709]
[1757297293975,3.905,4289.3,4289.2,9.1209896]
[1757297294333,3.905,4289.3,4289.2,3.56893709]
[1757297294512,3.905,4289.3,4289.2,3.08143709]
[1757297295100,3.905,4289.3,4289.2,2.61753709]
[1757297295416,3.905,4289.3,4289.2,3.08143709]
[1757297296184,3.905,4289.3,4289.2,3.56893709]
[1757297296383,3.905,4289.3,4289.2,6.56893709]
[1757297296589,3.905,4289.3,4289.2,6.68493709]
[1757297298387,1.791,4289.8,4289.2,6.68493709]
[1757297298388,1.791,4289.8,4289.7,2.33116534]
[1757297298583,5.695,4289.8,4289.7,2.33116534]
[1757297303057,5.695,4289.8,4289.7,3.08116534]
[1757297303338,5.695,4289.8,4289.7,3.56866534]
[1757297304256,0.001,4290.1,4290.0,2.33100233]
[1757297304417,3.902,4290.1,4290.0,6.73524714]
[1757297304736,3.902,4290.1,4290.0,10.97274714]
[1757297307624,0.001,4290.1,4290.0,10.97274714]
[1757297308341,0.001,4290.1,4290.0,6.56850233]
[1757297308515,0.001,4290.1,4290.0,5.33100233]
[1757297308930,0.001,4290.1,4290.0,6.09340233]
[1757297309831,0.001,4290.1,4290.0,6.56850233]
[1757297310332,0.001,4290.1,4290.0,10.97274714]
[1757297312919,0.001,4290.1,4290.0,11.08874714]
[1757297313350,0.001,4290.1,4290.0,14.98774714]
[1757297315859,0.001,4290.1,4290.0,19.39199195]
[1757297316869,0.001,4290.1,4290.0,14.98774714]
[1757297317059,0.001,4290.1,4290.0,15.68762454]
[1757297328267,0.001,4290.1,4290.0,20.09186935]
[1757297328473,0.001,4290.1,4290.0,15.68762454]
[1757297338195,0.001,4290.1,4290.0,20.09186935]
[1757297342606,0.001,4290.5,4290.4,2.330785]
[1757297342807,0.001,4290.5,4290.4,10.74202981]
[1757297342975,0.001,4290.5,4290.4,11.97722981]
[1757297343502,0.001,4291.3,4291.2,2.33035048]
[1757297343705,0.001,4291.3,4291.2,6.73459529]
[1757297344011,0.1,4291.3,4291.2,9.73459529]
[1757297348785,0.001,4291.3,4291.2,10.47709529]
[1757297348978,0.001,4291.3,4291.2,10.96979529]
[1757297349180,0.001,4291.3,4291.2,11.08579529]
[1757297349378,0.001,4291.3,4291.2,11.78552089]
[1757297350848,0.001,4291.3,4291.2,15.67652089]
[1757297354128,0.001,4291.3,4291.2,15.18382089]
[1757297355655,0.001,4291.3,4291.2,14.88582089]
[1757297355958,0.001,4291.3,4291.2,14.44132089]
[1757297358947,0.001,4291.3,4291.2,15.18382089]
[1757297359105,0.001,4291.3,4291.2,15.67652089]
[1757297364348,0.001,4291.3,4291.2,16.81562016]
[1757297369951,0.001,4291.3,4291.2,6.88857608]
[1757297370151,0.001,4291.3,4291.2,16.32192016]
[1757297371020,0.001,4291.3,4291.2,16.81842016]
[1757297372251,0.001,4291.3,4291.2,16.32192016]
[1757297372458,0.1641,4291.3,4291.2,10.03607608]
[1757297372627,0.1641,4291.3,4291.2,10.03507608]
[1757297374660,0.1641,4291.3,4291.2,6.14607608]
[1757297377058,0.001,4291.3,4291.2,6.14607608]
[1757297377254,0.1628,4291.3,4291.2,6.14607608]
[1757297377659,0.001,4291.3,4291.2,6.14607608]
[1757297377862,0.001,4291.3,4291.2,6.89727608]
[1757297378858,0.001,4291.3,4291.2,7.39377608]
[1757297380139,0.001,4291.3,4291.2,8.18577608]
[1757297381227,0.001,4291.3,4291.2,7.73507608]
[1757297381448,0.001,4291.3,4291.2,12.07477608]
[1757297393478,0.001,4291.3,4291.2,16.37042016]
[1757297393863,0.001,4291.3,4291.2,17.11322016]
[1757297394245,0.001,4291.3,4291.2,16.37042016]
[1757297394651,0.001,4291.3,4291.2,16.81062016]
[1757297398695,0.001,4291.3,4291.2,17.11322016]
[1757297401399,0.001,4291.3,4291.2,17.61122016]
[1757297406281,0.001,4291.3,4291.2,16.37042016]
[1757297406490,0.001,4291.3,4291.2,16.81062016]
[1757297406690,0.001,4291.3,4291.2,17.11322016]
[1757297408769,0.001,4291.3,4291.2,17.61122016]
[1757297411882,0.001,4291.3,4291.2,17.11322016]
[1757297413025,0.1641,4291.3,4291.2,6.14607608]
[1757297413339,0.6448,4291.3,4291.2,7.03307608]
[1757297413523,0.1641,4291.3,4291.2,10.03307608]
[1757297417976,0.001,4291.3,4291.2,10.03307608]
[1757297419076,0.001,4291.3,4291.2,11.27387608]
[1757297419235,0.001,4291.3,4291.2,16.37702016]
[1757297419431,0.001,4291.3,4291.2,16.81722016]
[1757297420380,0.001,4291.3,4291.2,16.31922016]
[1757297422510,0.001,4291.3,4291.2,16.81722016]
[1757297424460,0.001,4291.3,4291.2,17.60922016]
[1757297426399,0.001,4291.3,4291.2,16.46467688]
[1757297428394,0.001,4291.3,4291.2,15.96667688]
[1757297428601,0.001,4291.3,4291.2,14.87207688]
[1757297428805,0.1641,4291.3,4291.2,14.43187688]
[1757297433209,0.001,4291.3,4291.2,15.15507688]
[1757297433410,1e-08,4291.8,4291.7,2.33007898]
[1757297433580,1e-08,4291.8,4291.7,9.21707898]
[1757297433907,1e-08,4291.8,4291.7,14.33907978]
[1757297434073,1e-08,4291.8,4291.7,14.43235607]
[1757297443408,1e-08,4291.8,4291.7,14.54835607]
[1757297446129,0.09900001,4291.8,4291.7,13.82515607]
[1757297447209,1e-08,4291.8,4291.7,13.82515607]
[1757297448238,0.09900001,4291.8,4291.7,13.82515607]
[1757297452622,1e-08,4291.8,4291.7,13.82515607]
[1757297452824,0.43500001,4292.4,4292.3,2.32975327]
[1757297453030,0.53410001,4292.4,4292.3,2.32975327]
[1757297456400,0.63590001,4292.4,4292.3,2.32975327]
[1757297456800,0.53410001,4292.4,4292.3,2.32975327]
[1757297458208,0.0991,4292.4,4292.3,2.32975327]
[1757297459848,1.79,4292.6,4292.5,2.32964472]
[1757297460157,1.8891,4292.6,4292.5,2.32964472]
[1757297460952,1.79,4292.6,4292.5,2.32964472]
[1757297461132,1.79,4292.6,4292.5,2.77014472]
[1757297464663,1.889,4292.6,4292.5,2.32964472]
[1757297465415,2.7991,4292.6,4291.7,2.33007898]
[1757297465621,0.116,4292.1,4292.0,2.32989839]
[1757297465921,0.6809,4292.1,4292.0,2.32989839]
[1757297466122,0.215,4292.1,4292.0,2.32989839]
[1757297467051,0.6809,4292.1,4291.9,2.32995333]
[1757297467263,0.6809,4292.1,4292.0,2.32991612]
[1757297467264,0.215,4292.1,4292.0,2.32991612]
[1757297468252,0.215,4292.1,4291.8,2.32997642]
[1757297468456,0.6809,4292.1,4291.9,2.32996138]
[1757297468666,0.6809,4292.1,4292.0,2.32991612]
[1757297469622,2.1323,4292.6,4292.3,2.32972108]
[1757297469837,2.1323,4292.6,4292.0,3.06111612]
[1757297469838,0.116,4292.4,4292.1,2.32985953]
[1757297470054,0.215,4292.4,4292.1,2.32985953]
[1757297470440,0.215,4292.4,4292.3,2.32975327]
[1757297472450,0.215,4292.4,4292.2,2.32980403]
[1757297473225,0.215,4292.4,4292.2,2.32980755]
[1757297473547,0.215,4292.4,4292.1,2.33185729]
[1757297473756,0.215,4292.4,4292.3,2.32975327]
[1757297473958,0.518103,4292.4,4292.3,2.32975327]
[1757297474869,0.518103,4292.4,4292.2,2.32979547]
[1757297475469,0.518103,4292.4,4292.1,2.33184836]
[1757297475774,0.518103,4292.4,4292.1,0.002]
[1757297476070,0.5678,4292.3,4292.1,0.002]
[1757297476279,3.884,4292.2,4292.1,0.002]
[1757297476476,4.82191947,4292.2,4292.1,0.002]
[1757297476773,5.28781947,4292.2,4292.1,0.002]
[1757297476982,7.61762702,4292.2,4292.1,0.002]
[1757297477973,8.12024448,4292.2,4292.1,0.002]
[1757297478175,7.61762702,4292.2,4292.1,0.002]
[1757297479672,4.6207621,4292.2,4292.1,0.7332]
[1757297479972,4.40281113,4292.2,4292.1,0.002]
[1757297480348,4.50181113,4292.2,4292.1,0.002]
[1757297482075,0.51881113,4292.2,4292.1,0.002]
[1757297482301,4.56691113,4292.2,4292.1,0.002]
[1757297482698,6.89671868,4292.2,4292.1,0.002]
[1757297482848,7.40111868,4292.2,4292.1,0.002]
[1757297483244,7.36261868,4292.2,4292.1,0.002]
[1757297483850,7.40111868,4292.2,4292.1,0.002]
[1757297484988,7.40111868,4292.2,4292.1,0.002]
[1757297485687,7.36261868,4292.2,4292.1,0.002]
[1757297487791,8.120198,4292.2,4292.1,0.002]
[1757297490389,7.615798,4292.2,4292.1,0.002]
[1757297490954,8.101898,4292.2,4292.1,0.002]
[1757297491284,8.140398,4292.2,4292.1,0.002]
[1757297492050,8.101898,4292.2,4292.1,0.002]
[1757297492249,7.615798,4292.2,4292.1,0.002]
[1757297493061,8.101898,4292.2,4292.1,0.002]
[1757297494162,8.932398,4292.2,4292.1,0.002]
[1757297494466,8.407798,4292.2,4292.1,0.002]
[1757297494859,8.893898,4292.2,4292.1,0.002]
[1757297495172,8.932398,4292.2,4292.1,0.002]
[1757297496923,8.893898,4292.2,4292.1,0.002]
[1757297497892,8.89396591,4292.2,4292.1,0.002]
[1757297499046,12.02459052,4292.2,4292.1,0.002]
[1757297499254,0.792,4291.6,4291.2,0.002]
[1757297499394,2.33029618,4291.3,4291.2,0.002]
[1757297499731,7.38580676,4291.3,4291.2,0.002]
[1757297500525,7.56477135,4291.3,4291.2,0.002]
[1757297503040,4.10171058,4291.3,4291.2,0.7778]
[1757297503237,6.43200676,4291.3,4291.2,1.2057]
[1757297503405,7.18473282,4291.3,4291.2,1.2057]
[1757297504388,7.28373282,4291.3,4291.2,0.002]
[1757297505939,7.78497805,4291.3,4291.2,0.002]
[1757297506237,7.68597805,4291.3,4291.2,0.002]
[1757297506611,7.68597805,4291.3,4291.2,0.4299]
[1757297507427,8.57697805,4291.3,4291.2,0.002]
[1757297507811,8.47797805,4291.3,4291.2,0.002]
[1757297508021,8.47797805,4291.3,4291.2,0.733]
[1757297508224,7.97673282,4291.3,4291.2,0.733]
[1757297508937,7.18473282,4291.3,4291.2,1.2057]
[1757297509512,4.85443664,4291.3,4291.2,1.2057]
[1757297509841,3.884,4291.3,4291.2,1.2057]
[1757297512029,6.21429618,4291.3,4291.2,1.2057]
[1757297513147,6.21429618,4291.3,4291.2,0.002]
[1757297515364,6.43220028,4291.3,4291.2,0.002]
[1757297515569,7.50510122,4291.3,4291.2,0.002]
[1757297515727,7.60410122,4291.3,4291.2,0.002]
[1757297516074,3.12235048,4291.2,4291.1,1e-08]
[1757297516357,4.3049584,4291.2,4291.1,1e-08]
[1757297516556,6.31284487,4291.2,4291.1,1e-08]
[1757297516725,9.44357317,4291.2,4291.1,1e-08]
[1757297517742,8.98087317,4291.2,4291.1,1e-08]
[1757297518370,9.44357317,4291.2,4291.1,1e-08]
[1757297518691,8.98087317,4291.2,4291.1,1e-08]
[1757297519736,8.88187317,4291.2,4291.1,1e-08]
[1757297520572,9.04497317,4291.2,4291.1,1e-08]
[1757297524906,8.8819296,4291.2,4291.1,1e-08]
[1757297526499,16.1050296,4291.2,4291.1,1e-08]
[1757297528533,16.5677296,4291.2,4291.1,1e-08]